Cogmind - Beta 13 @@@ ROGUE MODE // 2024.05.02 @ 01:25:16 Player: GayPredator Result: Destroyed by S-27 Virus with Autogun Performance ------------- Evolutions (3) 1500 Regions Visited (5) 1000 Robots Destroyed (37) 185 Value Destroyed (988) 988 Prototype IDs (0) 0 Alien Tech Used (0) 0 Bonus (0) 0 TOTAL SCORE: 3673 Bonus ------- None Cogmind --------- Core Integrity 0/700 Matter 169/300 Energy 79/100 System Corruption 2% Temperature Cool (0) Movement Core (50) Location -7/Factory Parts ------- > --- POWER (1) -------- (None) > --- PROPULSION (2) --- (None) > --- UTILITY (6) ------ (None) > --- WEAPON (4) ------- (None) > --- INVENTORY (5) ---- Light Nuclear Core Advanced Targeting Computer ECM Suite Improved Light Armor Plating Peak State ------------ > --- POWER ------------ Improved Deuterium Engine > --- PROPULSION ------- Wheel > --- UTILITY ---------- Medium Storage Unit Sensor Array Improved Signal Interpreter Hacking Suite System Shield System Shield > --- WEAPON ----------- Lightning Gun Autogun Autogun Assault Cannon > --- INVENTORY -------- Structural Scanner Trap Scanner Advanced Targeting Computer Advanced Targeting Computer Transmission Jammer ECM Suite Hardened Heavy Armor Plating Improved Light Armor Plating [Rating: 32] Favorites ----------- Power Light Nuclear Core Engine Improved Deuterium Engine Power Core Light Nuclear Core Propulsion Wheel Wheel Wheel Utility Medium Storage Unit Device Sensor Array Storage Medium Storage Unit Processor Improved Signal Interpreter Hackware System Shield Protection Hardened Heavy Armor Plating Weapon Autogun Energy Gun Small Laser Ballistic Gun Autogun Ballistic Cannon Assault Cannon Launcher Shock Bomb Launcher Build | -11 -10 -10 -10 -8 -7 ------- Run | Yrd Mat Min Sub Mat Fac Slots Evolved 6 | . . . . 4 2 Power . | . . . . . . Propulsion . | . . . . . . Utility 4 | . . . . 3 1 Weapon 2 | . . . . 1 1 Parts Attached 57 | 8 8 1 1 23 16 Power 6 | 2 1 1 . 1 1 Engine 4 | 2 1 . . . 1 Core 2 | . . 1 . 1 . Reactor . | . . . . . . Propulsion 8 | 2 2 . 1 2 1 Treads . | . . . . . . Leg . | . . . . . . Wheel 8 | 2 2 . 1 2 1 Hover . | . . . . . . Flight . | . . . . . . Utility 28 | 2 2 . . 12 12 Device 16 | 1 1 . . 7 7 Storage 2 | 1 1 . . . . Processor 2 | . . . . 1 1 Hackware 3 | . . . . 1 2 Protection 5 | . . . . 3 2 Artifact . | . . . . . . Weapon 15 | 2 3 . . 8 2 Energy Gun 5 | 2 1 . . . 2 Energy Cannon . | . . . . . . Ballistic Gun 6 | . 2 . . 4 . Ballistic Cannon 1 | . . . . 1 . Launcher 3 | . . . . 3 . Special Weapon . | . . . . . . Impact Weapon . | . . . . . . Slashing Weapon . | . . . . . . Piercing Weapon . | . . . . . . Special Melee Weapon . | . . . . . . Unidentified Prototypes . | . . . . . . Parts Lost 19 | . 1 . . 8 10 Power 3 | . 1 . . 2 . Propulsion 5 | . . . . 2 3 Utility 3 | . . . . 1 2 Weapon 8 | . . . . 3 5 Highest Loss Streak 6 | . 1 . . 6 5 To Critical Strikes . | . . . . . . Average Slot Usage (%) 91 | . 98 100 100 95 77 Engine 4 | . 13 1 . . 4 Core 5 | . . 12 14 7 . Wheel 19 | . 27 28 28 17 13 Device 13 | . 14 14 14 22 4 Storage 10 | . 14 14 14 9 6 Processor 4 | . . . . 7 6 Hackware 7 | . . . . 3 19 Protection 1 | . . . . 1 1 Energy Gun 3 | . 21 . . . . Ballistic Gun 14 | . 6 28 28 12 12 Ballistic Cannon 3 | . . . . 6 5 Launcher 2 | . . . . 7 . Naked Turns 51 | . . . . . 51 Heaviest Build 43 | 13 20 22 22 35 43 Greatest Support 26 | 20 20 20 20 20 26 Greatest Overweight (x) 4 | . . 1 1 2 4 Average Overweight (x) . | . . . 1 1 . Largest Inventory Capacity 10 | 8 10 10 10 10 10 Average Capacity 9 | 6 9 10 10 10 9 Most Carried 10 | 4 10 10 10 10 10 Average Carried 8 | 1 7 10 9 8 8 Final Capacity 10 | 8 10 10 10 10 5 Final Carried 10 | 4 10 10 9 10 4 Class Distribution -------------------- 44% | Mutant 23% | Scavenger-Skirmisher 19% | Hacker-Skirmisher 5% | Hacker-Mutant 4% | Skirmisher Dominant Class ---------------- Mutant | -10/Materials Mutant | -10/Mines Mutant | -10/Subcaves Scavenger-Skirmisher | -8/Materials Hacker-Skirmisher | -7/Factory Resources | -11 -10 -10 -10 -8 -7 ----------- Run | Yrd Mat Min Sub Mat Fac Matter Collected 1134 | 226 172 132 . 431 173 Remotely . | . . . . . . Salvage Created 1240 | 31 500 174 . 431 104 Parts 81 | 5 30 9 . 31 6 Haulers Intercepted 3 | . 1 . . 2 . Recyclers Shooed 1 | . 1 . . . . Parts Field Recycled . | . . . . . . Retrieved Matter . | . . . . . . Parts Self-Destructed . | . . . . . . Prevented . | . . . . . . Kills | -11 -10 -10 -10 -8 -7 ------- Run | Yrd Mat Min Sub Mat Fac Combat Hostiles Destroyed 25 | . 8 4 . 9 4 Guns 19 | . 8 4 . 3 4 Cannons 2 | . . . . 2 . AOE 4 | . . . . 4 . Classes Destroyed 8 | 1 5 . . 2 . Worker 3 | . 3 . . . . Builder 1 | . 1 . . . . Tunneler 2 | 2 . . . . . Hauler 3 | . 1 . . 2 . Watcher 3 | . 1 . . 2 . Swarmer 8 | . . . . 4 4 Grunt 16 | . 8 4 . 4 . Heavy 1 | . . . . 1 . Best Kill Streak 5 | 2 5 2 . 5 2 Combat Bots Only 4 | . 3 2 . 4 2 Max Kills in Single Turn 2 | 1 1 1 . 2 1 Gunslinging . | . . . . . . Exploded 2 | . . . . 2 . Melee . | . . . . . . Uniques/NPCs Destroyed . | . . . . . . Combat | -11 -10 -10 -10 -8 -7 -------- Run | Yrd Mat Min Sub Mat Fac Hostile Shots Fired 296 | . 36 20 . 35 205 Missed 102 | . 11 3 . 10 78 Damage Taken 3305 | . 298 239 . 858 1910 Core 989 | . 84 71 . 130 704 Absorbed by Shields . | . . . . . . Regen/Repaired (Parts) 95 | . 31 . . 64 . Core Remaining (%) 71 | 100 . . 38 76 . Volleys Fired 121 | 4 46 14 . 35 22 Largest 3 | 2 2 2 . 3 1 Hottest 103 | 80 90 46 . 103 80 Shots Fired 230 | 8 91 28 . 82 21 Gun 185 | 8 91 28 . 41 17 Cannon 28 | . . . . 24 4 Launcher 17 | . . . . 17 . Special . | . . . . . . Kinetic 115 | . 12 28 . 65 10 Thermal 91 | 8 79 . . . 4 Explosive 2 | . . . . 2 . Electromagnetic 22 | . . . . 15 7 Robot Hit Streak 9 | 2 5 8 . 9 8 Robot Miss Streak 4 | 2 3 2 . 4 4 Penetration Max . | . . . . . . Secondary Targets . | . . . . . . Shots Hit Robots 139 | 3 57 20 . 50 9 Core Hits 64 | 2 25 7 . 23 7 Critical Kills . | . . . . . . Critical Parts Destroyed 1 | . . 1 . . . Critical Strikes 2 | . 1 1 . . . Burn 1 | . 1 . . . . Destroy 1 | . . 1 . . . Melee Attacks . | . . . . . . Impact . | . . . . . . Slashing . | . . . . . . Piercing . | . . . . . . Sneak Attacks . | . . . . . . Combat Hostiles . | . . . . . . Follow-up Attacks . | . . . . . . Damage Inflicted 2490 | 45 739 340 . 1183 183 Guns 1710 | 45 739 340 . 414 172 Cannons 349 | . . . . 349 . Explosions 420 | . . . . 420 . Melee . | . . . . . . Ramming 11 | . . . . . 11 Kinetic 1309 | . 141 340 . 763 65 Thermal 708 | 45 598 . . 13 52 Explosive 12 | . . . . 12 . Electromagnetic 450 | . . . . 395 55 Impact . | . . . . . . Slashing . | . . . . . . Piercing . | . . . . . . Highest Corruption 2 | . . . . . 2 Average Corruption 1 | . . . . . 1 Corruption Purged . | . . . . . . Corruption Blocked . | . . . . . . Effects 6 | . . . . . 6 Message Errors 2 | . . . . . 2 Matter Fused 1 | . . . . . 1 Energy Discharges 1 | . . . . . 1 Data Loss (major) 1 | . . . . . 1 Weapon Failures 1 | . . . . . 1 Overload Shots . | . . . . . . Overflow Damage 19 | . . . . 19 . Projectiles 17 | . . . . 17 . Explosions 2 | . . . . 2 . Melee . | . . . . . . Knockbacks 1 | . . . . 1 . Impact . | . . . . . . Kinetic 1 | . . . . 1 . Secondary . | . . . . . . Self-Inflicted Damage 73 | . . . . 68 5 Shots 3 | . . . . 3 . Rammed 1 | . . . . . 1 Targets Rammed 1 | . . . . . 1 Kicked . | . . . . . . Crushed . | . . . . . . Highest Temperature 354 | 36 354 131 . 105 36 Average Temperature 83 | 16 118 55 . 33 12 Received Heat Transfer 477 | . 162 153 . 81 81 Siege Activations . | . . . . . . Robots Corrupted . | . . . . . . Combat Hostiles . | . . . . . . Parts Fried . | . . . . . . Impact Corruptions . | . . . . . . Robots Melted . | . . . . . . Combat Hostiles . | . . . . . . Parts Melted 1 | . 1 . . . . Heat Transferred 1912 | 100 1637 . . 50 125 Parts Sabotaged . | . . . . . . Parts Stolen . | . . . . . . Parts Stripped . | . . . . . . Power Chain Reactions 4 | . . . . 4 . Alert | -11 -10 -10 -10 -8 -7 ------- Run | Yrd Mat Min Sub Mat Fac Peak Influence 272 | 10 272 127 . 235 270 Initial 68 | . 6 27 . 31 68 Average 102 | 2 137 88 . 132 68 Maximum Alert Level 1 | . 1 . . 1 1 Low Security (%) 82 | 100 68 100 . 67 96 Level 1 17 | . 31 . . 32 3 Level 2 . | . . . . . . Level 3 . | . . . . . . Level 4 . | . . . . . . Level 5 . | . . . . . . High Security . | . . . . . . Max Security . | . . . . . . Squads Dispatched 12 | . 3 . . 6 3 Investigation 4 | . 2 . . 1 1 Extermination . | . . . . . . Reinforcement 8 | . 1 . . 5 2 Assault . | . . . . . . Garrison . | . . . . . . Intercept . | . . . . . . Searches Triggered . | . . . . . . Construction Impeded 1 | . . . . 1 . Haulers Reinforced . | . . . . . . Active Scanning Responses . | . . . . . . Cargo Convoy Interrupts . | . . . . . . Stealth | -11 -10 -10 -10 -8 -7 --------- Run | Yrd Mat Min Sub Mat Fac Distress Signals 7 | . 2 . . 4 1 Communications Jammed . | . . . . . . Distress Signals . | . . . . . . Times Spotted 66 | . 13 4 . 22 27 Peak Tracking Total 9 | . 3 2 . 5 9 Tactical Retreats 8 | . 1 . . 2 5 Traps | -11 -10 -10 -10 -8 -7 ------- Run | Yrd Mat Min Sub Mat Fac Traps Triggered 4 | . 1 . . . 3 Indirectly . | . . . . . . Trap Hack Attempts . | . . . . . . Triggered . | . . . . . . Disarmed . | . . . . . . Reprogrammed . | . . . . . . Reused . | . . . . . . Traps Extracted . | . . . . . . Installed . | . . . . . . Triggered . | . . . . . . Machines | -11 -10 -10 -10 -8 -7 ---------- Run | Yrd Mat Min Sub Mat Fac Machines Disabled 5 | . . . . 3 2 Max in Single Turn 1 | . . . . 1 1 Garrison Access 1 | . . . . . 1 Machines Repaired . | . . . . . . Machines Dismantled . | . . . . . . Machines Sabotaged . | . . . . . . Overloaded Fab Kills . | . . . . . . Hacking | -11 -10 -10 -10 -8 -7 --------- Run | Yrd Mat Min Sub Mat Fac Machines Accessed 15 | . 6 . . 3 6 Terminals 11 | . 5 . . 1 5 Fabricators . | . . . . . . Repair Stations 2 | . 1 . . 1 . Recycling Units 1 | . . . . 1 . Scanalyzers . | . . . . . . Garrison Access 1 | . . . . . 1 Total Hacks 50 | . 14 . . 10 26 Successful 22 | . 6 . . 6 10 Failed 28 | . 8 . . 4 16 Catastrophic 11 | . 3 . . 1 7 Database Lockouts . | . . . . . . Manual 35 | . 10 . . 5 20 Terminals 42 | . 12 . . 5 25 Fabricators . | . . . . . . Repair Stations 5 | . 2 . . 3 . Recycling Units 2 | . . . . 2 . Scanalyzers . | . . . . . . Garrison Access 1 | . . . . . 1 Terminal Hacks 12 | . 1 . . 2 9 Record 1 | . . . . . 1 Part Schematic 3 | . . . . . 3 Open DSF 1 | . . . . . 1 Branch Access Points 1 | . . . . . 1 Terminal Index 1 | . . . . . 1 Alert Level 1 | . . . . . 1 Locate Traps 1 | . . . . . 1 Dispatch Records 1 | . 1 . . . . Recall Reinforcements 2 | . . . . 2 . Fabricator Hacks . | . . . . . . Repair Station Hacks 4 | . 2 . . 2 . Scan Component 2 | . 1 . . 1 . Repair 2 | . 1 . . 1 . Recycling Unit Hacks 2 | . . . . 2 . Report Inventory 1 | . . . . 1 . Retrieve Components 1 | . . . . 1 . Scanalyzer . | . . . . . . Garrison Access Hacks 1 | . . . . . 1 Seal Access 1 | . . . . . 1 Unauthorized Hacks 3 | . 3 . . . . Terminals 3 | . 3 . . . . Assimilate 1 | . 1 . . . . Botnet 2 | . 2 . . . . Fabricators . | . . . . . . Repair Stations . | . . . . . . Recycling Units . | . . . . . . Scanalyzers . | . . . . . . Garrison Access . | . . . . . . Data Cores Recovered . | . . . . . . Used . | . . . . . . Hacking Detections 13 | . 6 . . 3 4 Full Trace Events 3 | . 2 . . . 1 Feedback Events . | . . . . . . Feedback Blocked . | . . . . . . Robot Schematics Acquired . | . . . . . . Robots Built . | . . . . . . Authchips . | . . . . . . Time . | . . . . . . Total Robot Build Rating . | . . . . . . Part Schematics Acquired 3 | . . . . . 3 Parts Built . | . . . . . . Authchips . | . . . . . . Time . | . . . . . . Total Part Build Rating . | . . . . . . Parts Repaired 2 | . 1 . . 1 . Time 64 | . 26 . . 38 . Parts Recycled . | . . . . . . Recycled Matter . | . . . . . . Retrieved Matter . | . . . . . . Retrieved Components 2 | . . . . 2 . Parts Scanalyzed . | . . . . . . Part Schematics Acquired . | . . . . . . Parts Damaged . | . . . . . . Bothacking | -11 -10 -10 -10 -8 -7 ------------ Run | Yrd Mat Min Sub Mat Fac Used RIF Installer . | . . . . . . Robots Hacked . | . . . . . . Non-combat . | . . . . . . Combat . | . . . . . . Robot Hacks Applied . | . . . . . . Relay Couplers Released . | . . . . . . Fabnet Peak Effective % . | . . . . . . Robots Rewired 1 | . . . . 1 . Allies Hacked . | . . . . . . Hacks Repelled . | . . . . . . Allies | -11 -10 -10 -10 -8 -7 -------- Run | Yrd Mat Min Sub Mat Fac Total Allies 1 | . . . . 1 . Largest Group 1 | . . . . 1 . Highest-Rated Group 15 | . . . . 15 . Highest-Rated Ally 15 | . . . . 15 . Total Orders 1 | . . . . 1 . STAY 1 | . . . . 1 . Ally Attacks 2 | . . . . 2 . Total Damage 48 | . . . . 48 . Kills . | . . . . . . Allies Corrupted . | . . . . . . Allies Melted . | . . . . . . Intel | -11 -10 -10 -10 -8 -7 ------- Run | Yrd Mat Min Sub Mat Fac Robot Analysis Total . | . . . . . . Derelict Logs Recovered 1 | . . 1 . . . Drone Launches . | . . . . . . Drone Recoveries . | . . . . . . Exploration | -11 -10 -10 -10 -8 -7 ------------- Run | Yrd Mat Min Sub Mat Fac Turns Passed 2575 | 60 443 367 137 779 789 Spaces Moved 2058 | 43 309 324 143 562 677 Core 98 | 3 . . . . 95 Treads . | . . . . . . Legs . | . . . . . . Wheels 1960 | 40 309 324 143 562 582 Hover . | . . . . . . Flight . | . . . . . . Fastest Speed 50 | 50 80 80 95 80 50 Average Speed 91 | 77 80 93 95 95 91 Slowest Speed 140 | 80 80 95 95 110 140 Overloaded Moves . | . . . . . . Propulsion Burnouts . | . . . . . . Robots Hopped . | . . . . . . Cave-ins Triggered . | . . . . . . Exploration Rate (%) 37 | 3 58 83 11 51 19 Regions Visited 5 Branch Regions 2 Pre-discovered Areas 1 | . . 1 . . . Known Exits Taken 1 | . . . . 1 . Unknown Exits Taken 4 | 1 1 1 1 . . Scrap Searched 1 | . . 1 . . . Spaces Dug 3 | . . . . 3 . Terrain Destroyed 47 | . . . . 47 . Melee . | . . . . . . Projectile 4 | . . . . 4 . AOE 43 | . . . . 43 . Terrain Rammed . | . . . . . . Walls Destroyed . | . . . . . . Machines Disabled . | . . . . . . Actions | -11 -10 -10 -10 -8 -7 --------- Run | Yrd Mat Min Sub Mat Fac Total 2550 | 57 417 365 144 742 825 Wait 238 | . 35 24 . 94 85 Move 2053 | 42 308 323 142 561 677 Hop . | . . . . . . Pick Up 34 | 3 10 1 . 13 7 Fast Attach 25 | 7 6 . . 8 4 Attach 16 | . 1 . . 9 6 Detach 3 | . 1 . . 2 . Swap 16 | 1 1 1 1 6 6 Drop 30 | . 9 2 1 9 9 Fire 121 | 4 46 14 . 35 22 Melee . | . . . . . . Ram 1 | . . . . . 1 Kick . | . . . . . . Crush . | . . . . . . Escape Stasis 8 | . . . . . 8 Rewire 5 | . . . . 5 . Trap . | . . . . . . Miscellaneous . | . . . . . . Route ------- -11/Scrapyard -10/Materials (discovered 2 exits: [*Mat] / [*Min]) -10/Mines (discovered 4 exits: [*Mat x2] / [*Exi] / [*Sub]) -10/Subcaves -8/Materials (discovered 2 exits: *Fac x2) -7/Factory (discovered 3 exits: Sto / Low x2) History --------- Turn | Location | Event 20 | -11/Scrapyard | Discovered new exit (range 16) 61 | -11/Scrapyard | Entered Materials 283 | -10/Materials | Discovered new exit (range 16) 314 | -10/Materials | Build established: Mutant 392 | -10/Materials | Discovered new exit (range 7) 485 | -10/Materials | Repaired Wheel 504 | -10/Materials | Entered Mines 505 | -10/Mines | Learned location of Storage (-7) 575 | -10/Mines | Deemed a non-threat by the Exiles lab entrance 575 | -10/Mines | Discovered new exit (range 5) 628 | -10/Mines | Discovered new exit (range 9) 745 | -10/Mines | Core integrity fell below 50% 793 | -10/Mines | Discovered new exit (range 7) 807 | -10/Mines | Discovered new exit (range 11) 871 | -10/Mines | Entered Subcaves 918 | -10/Subcaves | Discovered new exit (range 9) 1008 | -10/Subcaves | Entered Materials 1008 | -8/Materials | Evolved 4 slots: Utility x3, Weapon x1 1296 | -8/Materials | Repaired Shock Bomb Launcher 1331 | -8/Materials | Discovered new exit (range 5) 1488 | -8/Materials | Discovered new exit (range 3) 1722 | -8/Materials | Lost 6 parts (1p1n1u3w) 1786 | -8/Materials | Identified exit to Factory 1787 | -8/Materials | Entered Factory 1787 | -7/Factory | Evolved 2 slots: Utility x1, Weapon x1 1788 | -7/Factory | Identified exit to Storage 1904 | -7/Factory | Identified exit to DSF 2006 | -7/Factory | Identified exit to Lower Caves 2170 | -7/Factory | Build established: Hacker-Skirmisher 2415 | -7/Factory | Lost 5 parts (1n1u3w) 2517 | -7/Factory | Released all parts (3) 2547 | -7/Factory | Lost 4 parts (2n1u1w) 2549 | -7/Factory | Core integrity fell below 50% 2563 | -7/Factory | Core integrity fell below 20% 2576 | -7/Factory | Destroyed by S-27 Virus with Autogun Last Messages --------------- 02501_ K-01 Serf cleans the Subcomponent Replicator. 02502_ Autogun destroyed. 02504_ K-01 Serf cleans the Subcomponent Replicator. 02506_ Wheel destroyed. 02507_ Dropped Hrd. Heavy Armor Plating. 02509_ Dropped Med. Storage Unit. 02509_ K-01 Serf cleans the Subcomponent Replicator. 02514_ System Shield destroyed. 02516_ Com. Wheel destroyed. 02517_ Released Imp. Deuterium Engine. 02517_ Released Hacking Suite. 02517_ Released System Shield. 02520_ Slammed into K-01 Serf. 02555_ Dropped Transmission Jammer. 02556_ Acquired Gatling Laser. 02559_ R-06 Scavenger destroyed. 02559_ S-27 Virus destroyed. 02564_ Gatling Laser destroyed. 02566_ Acquired 71 matter. 02570_ Critical hit (Burn: +37). Map ----- +----------------------------------------------------+ | ?????????????????????????# [""" # """???????????? | | ?????????????????????????#=%""" %#??S????????????? | | ?????????????????????????# [#???????????????? | | ?????????????????????????# =#???????????????? | | ?????????????????????????# ! #???????????????? | | ?????????????????????????# = #???????????????? | | ?????????????????????????# ##### #???????????????? | | ?????????????????????????# #???? #???????????????? | | ?????????????????????????# #???? ???????????????? | | ???????????????????#######"####???#??????????????? | | ?????????????????# #??????????????????? | | ?????????????????# """" """" #??????????????????? | | ????????????????????""" """" #???????????????"""" | | ???????????????????""""u"""" #???????????????"""" | | ?????????????????# """" """" #???????????????"""" | | ?????????????????# """" """" #???????????????"""" | | ?????????????????# """"s"""" #???????????????"""" | | ?????????????????# """" """" #???????????????"""" | | ?????????????????# #???????????????"""" | | ?????????????????# k #??????????????????? | | ?????????????????# #??????????????????? | | ?????????????????# #??????????????????? | | ??????????? ############s############+##??######## | | ????????? | | ????????? | | ????????? @ | | ?????????? | | ?????????? | | ???????????# ######### ########### #??######## | | ?????????????????????# #?????????????????????? | | ?????????????????????# #?????????????????????? | | ?????????????????????# #?????????????????????? | | ????????????????????? #?????????????????????? | | ????????????????????## #?????????????????????? | | ?????????????????????# #?????????????????????? | | ?????????????????????# #?????????????????????? | | ?????????????????????# #?????????????????????? | | ?????????????????????# #?????????????????????? | | ?????????????????????# ??????????????????????? | | ?????????????????????# ??????????????????????? | | ??????????????????????? ??????????????????????? | | ?????????????????????????????????????????????????? | | ?????????????????????????????????????????????????? | | ?????????????????????????????????????????????????? | | ?????????????????????????????????????????????????? | | ?????????????????????????????????????????????????? | | ?????????????????????????????????????????????????? | | ?????????????????????????????????????????????????? | | ?????????????????????????????????????????????????? | | ?????????????????????????????????????????????????? | +----------------------------------------------------+ Best States ------------- Heat Dissipation 45 Energy Generation 16 Energy Capacity 290 Matter Stores 300 Matter Capacity 300 Sight Range 16 Robot Scan Range 14 Terrain Scan Range 16 Terrain Scan Density 10 ECM Strength 1 Armor Coverage 600 Evasion (%) 50 Offensive Hacking 10 Defensive Hacking 20 Item Schematics ----------------- Wheel | -7/Factory | Hacked System Restoration Module | -7/Factory | Hacked Hrd. Medium Armor Plating | -7/Factory | Hacked Robot Schematics ------------------ None Fabricated ------------ Nothing Alien Tech Used ----------------- None Achievements -------------- None Challenges ------------ None Game ------ Seed DeepDefensePropulsion Manual? 0 Play Time 00:42:38 Cumulative 65.2 hours Start 2024.05.02 @ 00:42:06 End 2024.05.02 @ 01:25:16 Sessions 1 Manual Loads 0 Difficulty Rogue Special Mode None Game No. 49 Rogue 10 Adventurer 32 Explorer 7 Win Type - Total 0 Types 0/0/0/0/0/0/0/0/0 Lore% 22 Gallery% 49 Achievement% 38 Wizard Run 0 Options --------- Layout 1 ASCII 0 Keyboard 0 Movement Mouse Keybinds 0 Fullscreen 0 Font 16/Smallcaps Map View 64x42 Zoom Use 0% Tactical HUD 1 Map Filters NONE Filters NONE Steam 1 RUN: 8404d56e-15a3-42dd-bbcd-3c800d28bfd8